[Event "German-ch Blitz Women 2022"]
[Site "Magdeburg"]
[Date "2022.08.13"]
[Round "14.8"]
[White "Wulf, Constanze"]
[Black "Staerk, Elisa"]
[Result "0-1"]
[ECO "A05"]
[WhiteElo "1835"]
[BlackElo "1947"]
[Annotator "TA"]
[PlyCount "174"]
[EventDate "2022.08.10"]
[EventType "tourn"]
[EventCountry "GER"]
[SourceTitle "playchess.com"]
[Source "ChessBase"]
[SourceQuality "1"]
[TimeControl "180+2"]

{[%evp 12,174,0,0,6,3,16,21,8,0,14,6,7,7,8,3,7,10,10,17,17,10,122,-13,124,-4,0,0,0,-16,-7,-20,-17,-22,331,349,343,341,335,266,319,325,379,339,587,416,439,439,406,326,309,294,810,786,785,398,387,374,339,316,458,446,547,553,500,365,350,8,8,8,8,8,10,11,10,10,14,-273,-154,-227,-181,-361,-342,-900,-883,-956,-894,-1191,-700,-703,-698,-695,-664,-737,-717,-679,-543,-660,-388,-363,405,-245,-177,-170,-91,-91,-91,-91,-91,-117,-117,-135,0,-117,-102,-103,-8,-123,-8,-516,-647,-736,-758,-685,-446,-685,-640,-613,-265,-692,-588,-4137,-707,-558,0,-4137,-4137,-4137,-4137,-4125,-8,-338,-8,-1232,-21,-43,-47,-1593,-1546,-4137,-4137,-4137,-4137,-29988,-315,-8,0,-29988,-29989,-29989,-29990,-29995,-29996,-29996,-29997]} 1. Nf3 {[%emt 0:00:02]} Nf6 {[%emt 0:00:01]} 2. b3 {[%emt 0:00:01]} g6 {[%emt 0:00:01]} 3. Bb2 {[%emt 0:00:01]} Bg7 {[%emt 0:00:00]} 4. e3 {[%emt 0:00:01]} O-O {[%emt 0:00:02]} 5. c4 {[%emt 0:00:04]} d6 {[%emt 0:00:01]} 6. Be2 {[%emt 0:00:02]} e5 {[%emt 0:00:01]} 7. d3 {[%emt 0:00:15] 7.0-0 is more fashionable.} Nbd7 {[%emt 0:00:04] A15: English Opening: 1...Nf6.} 8. O-O {[%emt 0:00:02]} c6 {[%emt 0:00:00]} 9. Nc3 {[%emt 0:00:02]} Re8 {[%emt 0:00:01] [#] The position is equal.} 10. Qd2 $146 {[%emt 0:00:09]} ({Predecessor:} 10. b4 Nf8 11. a4 Ne6 12. a5 Bd7 13. Nd2 h5 14. Nde4 Qe7 15. a6 b6 16. b5 {0-1 (48) Tarlev,K (2561)-Swiercz,D (2649) Chess.com INT 2020}) 10... Nf8 {[%emt 0:00:03]} 11. Rfe1 {[%emt 0:00:03]} Bg4 {[%emt 0:00:02]} 12. h3 {[%emt 0:00:02]} Bxf3 {[%emt 0:00:02]} 13. Bxf3 {[%emt 0:00:03]} ({Of course not} 13. gxf3 Ne6 $17) 13... Rc8 {[%emt 0:00:05]} 14. b4 {[%emt 0:00:18]} d5 {[%emt 0:00:06]} 15. cxd5 {[%emt 0:01:06]} cxd5 {[%emt 0:00:01]} 16. Rac1 {[%emt 0:00:06][%cal Oc3d5]} Ne6 {[%emt 0:00:23] [#]} (16... Qd6 $11) 17. a3 {[%emt 0:00:02]} (17. Nxd5 $1 $16 {[%mdl 512]} Nxd5 18. Rxc8 Qxc8 19. Bxd5) 17... b6 {[%emt 0:00:09] [#]} (17... Qd7 $11 {remains equal.}) 18. Nb5 {[%emt 0:00:21]} (18. Nxd5 $1 $16 {[%mdl 512]} Nxd5 19. Rxc8 Qxc8 20. Bxd5) 18... Rxc1 {[%emt 0:00:12]} 19. Rxc1 {[%emt 0:00:01]} Qd7 {[%emt 0:00:19]} 20. Nc3 {[%emt 0:00:15]} d4 {[%emt 0:00:05]} 21. Ne4 {[%emt 0:00:14]} Nxe4 {[%emt 0:00:07]} 22. Bxe4 {[%emt 0:00:06] Strongly threatening Bc6.} f5 $2 {[%emt 0:00:14][%mdl 8192]} (22... dxe3 $11 23. fxe3 Rd8) 23. Bc6 $18 {[%emt 0:00:01]} Qe7 {[%emt 0:00:18]} 24. Bxe8 {[%emt 0:00:02]} Qxe8 {[%emt 0:00:01]} 25. Rc4 {[%emt 0:00:20]} Qd7 {[%emt 0:00:08]} 26. Qc2 {[%emt 0:00:03]} h6 {[%emt 0:00:13]} 27. Rc8+ {[%emt 0:00:04]} Kh7 $2 {[%emt 0:00:02]} (27... Kf7 {was called for.} 28. exd4 exd4) 28. Ra8 {[%emt 0:00:03]} dxe3 {[%emt 0:00:05]} 29. fxe3 {[%emt 0:00:01]} f4 {[%emt 0:00:18]} 30. exf4 {[%emt 0:00:04]} Nxf4 {[%emt 0:00:01]} 31. Qc4 {[%emt 0:00:05][%csl Ga8][%cal Rc4g8]} g5 $2 {[%emt 0:00:19]} (31... h5 32. Rc8 Qf5) 32. Qg8+ {[%emt 0:00:02]} Kg6 {[%emt 0:00:01]} 33. Qe8+ {[%emt 0:00:01]} Qxe8 {[%emt 0:00:03]} 34. Rxe8 {[%emt 0:00:02]} Nxd3 {[%emt 0:00:01][%mdl 4096] Endgame KRB-KBN} 35. Bc3 {[%emt 0:00:01]} Kf7 {[%emt 0:00:04]} (35... Nf4 $142) 36. Ra8 {[%emt 0:00:01]} Nf4 {[%emt 0:00:11]} 37. Rxa7+ {[%emt 0:00:02]} Kg6 {[%emt 0:00:01]} 38. Rb7 {[%emt 0:00:02]} Ne2+ {[%emt 0:00:01]} 39. Kf2 $2 {[%emt 0:00:02]} (39. Kf1 $1 $18 {[%cal Rf1e2]} Nxc3 40. Rxb6+ Kf7 41. Rb7+ Kf6 42. b5) 39... Nxc3 $11 {[%emt 0:00:01]} 40. Rxb6+ {[%emt 0:00:02]} Kf5 {[%emt 0:00:02]} 41. Rb7 {[%emt 0:00:00]} Bf6 {[%emt 0:00:03]} 42. b5 {[%emt 0:00:00]} e4 {[%emt 0:00:01]} 43. b6 {[%emt 0:00:00]} Nd5 {[%emt 0:00:04] Threatens to win with ...Bd4+.} 44. Rb8 $2 {[%emt 0:00:00][%mdl 8192]} (44. a4 $11 {and White has nothing to worry.}) 44... Nxb6 {[%emt 0:00:06]} (44... Bd4+ $19 45. Kf1 Bxb6) 45. Ke2 {[%emt 0:00:00]} ({Don't play} 45. g4+ Kf4 46. Ke2 Bd4 47. Rf8+ Kg3 $19) (45. Kf1 $17 {keeps fighting.} Nd5 46. a4) 45... Nd5 $19 {[%emt 0:00:03]} 46. Rb5 $2 {[%emt 0:00:00]} (46. a4 {was necessary.}) 46... Ke5 {[%emt 0:00:05] aiming for ...Kd4.} 47. Rb8 $2 {[%emt 0:00:00]} (47. Ra5) 47... Kd4 {[%emt 0:00:08]} 48. Re8 {[%emt 0:00:00]} Nc3+ {[%emt 0:00:01]} 49. Kd2 {[%emt 0:00:00]} Nb1+ {[%emt 0:00:03]} 50. Ke2 {[%emt 0:00:03]} Nxa3 {[%emt 0:00:01]} 51. Rf8 {[%emt 0:00:03]} Ke5 {[%emt 0:00:01]} 52. Ke3 {[%emt 0:00:04]} Nc4+ {[%emt 0:00:01]} 53. Ke2 {[%emt 0:00:02]} Be7 {[%emt 0:00:02]} 54. Rh8 {[%emt 0:00:01]} Bc5 {[%emt 0:00:05]} 55. Rxh6 Kf5 $4 {[%mdl 8192]} (55... Ne3 $19 {and all is fine.} 56. Rh5 Kf6) 56. Rh8 $4 {[%emt 0:00:04][%mdl 8192]} (56. Rc6 $18 {was the only winning move.} Bf8 57. Rxc4) 56... Ne5 {[%emt 0:00:03] White must now prevent ...Ng6.} 57. Rc8 {[%emt 0:00:02]} Bd4 {[%emt 0:00:01]} (57... Be7 $19 {And now ...Nd3 would win.} 58. g3 Bd6) 58. Rd8 $17 {[%emt 0:00:02]} Bb6 {[%emt 0:00:01]} 59. Rf8+ {[%emt 0:00:01]} Ke6 {[%emt 0:00:01] ...Nc6 is the strong threat.} 60. Rg8 {[%emt 0:00:02]} Kf6 $1 {[%emt 0:00:01]} 61. Rb8 {[%emt 0:00:01]} Bd4 {[%emt 0:00:02]} (61... Nd7 $17 62. Rc8 Ke5) 62. Rd8 {[%emt 0:00:01]} (62. Rb4 $1 $11 Bc5 63. Rxe4) 62... Bc5 {[%emt 0:00:01]} 63. Rc8 {[%emt 0:00:01]} Be7 {[%emt 0:00:01]} (63... Nd7 $1 $17 64. g3 Kf5) 64. Rc7 {[%emt 0:00:02]} (64. Ke3 $11 {was the only way to keep the balance.}) 64... Ke6 {[%emt 0:00:01]} (64... Bd6 $17 65. Rc8 Ke6) 65. Ra7 $2 {[%emt 0:00:02][%mdl 8192] [#]} (65. Ke3 $1 $11) 65... Nc6 $1 $19 {[%emt 0:00:02]} 66. Ra8 {[%emt 0:00:02]} Kd5 {[%emt 0:00:02]} 67. Re8 {[%emt 0:00:01]} Bf6 {[%emt 0:00:01]} 68. Rg8 {[%emt 0:00:01]} (68. Ke3 $142 Bd4+ 69. Ke2) 68... Nd4+ {[%emt 0:00:01]} 69. Kf2 {[%emt 0:00:04]} Ke5 {[%emt 0:00:00]} (69... Nf5 $142 70. Rg6 Be7) 70. Ke3 $2 {[%emt 0:00:02]} (70. Ra8 Nf5 71. g3) 70... Nf5+ {[%emt 0:00:00]} 71. Kf2 {[%emt 0:00:01]} Kf4 {[%emt 0:00:00]} (71... e3+ $142 72. Kf3 Kd4) 72. Rf8 {[%emt 0:00:02]} Ke5 {[%emt 0:00:00]} (72... Bd4+ $142 73. Ke1 Bc5) 73. Rg8 $1 {[%emt 0:00:02]} e3+ {[%emt 0:00:00]} 74. Ke2 {[%emt 0:00:03]} Ke4 {[%emt 0:00:00]} 75. Re8+ {[%emt 0:00:01]} Kf4 $2 {[%emt 0:00:00]} ({Black should try} 75... Be5 $19 76. Ke1 Ng3) 76. Rf8 $2 {[%emt 0:00:01][%mdl 8192]} (76. Kd3 $1 $11) 76... Ng3+ $2 {[%emt 0:00:00]} (76... Be7 $19 77. Rf7 Ke4 78. Rxf5 Kxf5 79. Kxe3 Bd6) 77. Ke1 $2 {[%emt 0:00:03][%mdl 8192]} (77. Kd3 $11 Ne4 78. Rf7) 77... Ne4 $2 {[%emt 0:00:00]} ({Better is} 77... Ke5 $19 {Hoping for ...Be7.} 78. Kd1 Be7) 78. Ke2 $11 {[%emt 0:00:04]} Nc3+ {[%emt 0:00:00]} 79. Kf1 $2 {[%emt 0:00:05][%mdl 8192]} (79. Kd3 $15 Nd5 80. Rf7) 79... Nd5 $19 {[%emt 0:00:00]} 80. Ke2 {[%emt 0:00:01]} Ke4 {[%emt 0:00:00] ( -> ...Nf4+)} 81. Re8+ {[%emt 0:00:01]} Be5 {[%emt 0:00:00]} 82. Rg8 {[%emt 0:00:02]} Bf4 $2 {[%emt 0:00:00]} (82... Nc3+ {mates} 83. Kf1 e2+ 84. Kf2 {[#]} Bg3+ $1 {[%mdl 512]} 85. Kxg3 e1=Q+ 86. Kh2 Ne2 87. Re8+ Kd3 88. Rd8+ Ke3 89. Re8+ Kf2 90. Rf8+ Nf4 91. Rxf4+ gxf4 92. h4 Qg1+ 93. Kh3 Qxg2#) 83. Re8+ {[%emt 0:00:02]} Be5 $2 {[%emt 0:00:00][%mdl 8192]} (83... Kd4 $11 84. Kf3 Bc7 85. Re4+ Kd3) 84. Rg8 $1 {[%emt 0:00:01]} Nc3+ {[%emt 0:00:00] Black mates.} 85. Kf1 {[%emt 0:00:04]} e2+ {[%emt 0:00:00]} 86. Ke1 {[%emt 0:00:01]} Bg3+ {[%emt 0:00:00]} 87. Kd2 {[%emt 0:00:02]} e1=Q+ {[%emt 0:00:00] Quite a comeback for Black.  Weighted Error Value: White=0.83/Black=0.72} 0-1

[Event "German-ch Blitz Women 2022"]
[Site "Magdeburg"]
[Date "2022.08.13"]
[Round "14.9"]
[White "Stangl, Anita"]
[Black "Zschischang, Marine"]
[Result "1-0"]
[ECO "C11"]
[WhiteElo "2023"]
[BlackElo "2083"]
[Annotator "NA RC"]
[PlyCount "57"]
[EventDate "2022.08.10"]
[EventType "tourn"]
[EventCountry "GER"]
[SourceTitle "playchess.com"]
[Source "ChessBase"]
[SourceQuality "1"]
[TimeControl "180+2"]

1. e4 {[%emt 0:00:00]} e6 {[%emt 0:00:00]} 2. Nf3 d5 {[%emt 0:00:03]} 3. Nc3 {[%emt 0:00:02]} dxe4 {[%emt 0:00:01]} 4. Nxe4 {[%emt 0:00:01]} Nd7 {[%emt 0:00:01]} 5. d4 {[%emt 0:00:01]} Ngf6 {[%emt 0:00:00]} 6. Bd3 {[%emt 0:00:03]} c5 {[%emt 0:00:03]} 7. dxc5 {[%emt 0:00:12]} Nxc5 {[%emt 0:00:03]} 8. Bb5+ {[%emt 0:00:18]} Bd7 {[%emt 0:00:03]} 9. Bxd7+ {[%emt 0:00:19]} Qxd7 {[%emt 0:00:03]} 10. Nxf6+ {[%emt 0:00:11]} gxf6 {[%emt 0:00:02]} 11. Qe2 {[%emt 0:00:04]} O-O-O {[%emt 0:00:14]} 12. O-O {[%emt 0:00:02]} Rg8 {[%emt 0:00:10]} 13. Be3 {[%emt 0:00:02]} Qc6 {[%emt 0:00:10]} 14. Rad1 {[%emt 0:00:09]} Bd6 {[%emt 0:00:09]} 15. g3 {[%emt 0:00:08]} Kb8 {[%emt 0:00:18]} 16. Nd4 {[%emt 0:00:19]} Qe4 {[%emt 0:00:21]} 17. Nb5 {[%emt 0:00:19]} Qc6 {[%emt 0:00:23]} 18. b4 {[%emt 0:00:07]} Ne4 {[%emt 0:00:19]} 19. Nxa7 {[%emt 0:00:11]} Qa4 {[%emt 0:00:23]} 20. Bb6 {[%emt 0:00:06]} Nc3 {[%emt 0:00:07]} 21. Qc4 {[%emt 0:00:17]} Nxd1 {[%emt 0:00:03]} 22. Rxd1 {[%emt 0:00:01]} Be7 {[%emt 0:00:19]} 23. Rxd8+ {[%emt 0:00:29]} Rxd8 {[%emt 0:00:05]} 24. Qc7+ {[%emt 0:00:05]} Ka8 {[%emt 0:00:05]} 25. Qxe7 {[%emt 0:00:01]} Rb8 {[%emt 0:00:09]} 26. Qc5 {[%emt 0:00:06]} Qxa2 {[%emt 0:00:04]} 27. Nb5 {[%emt 0:00:04]} Qb1+ {[%emt 0:00:10]} 28. Kg2 {[%emt 0:00:00]} Qa2 {[%emt 0:00:02]} 29. Nc7# {[%emt 0:00:01]} 1-0

[Event "German-ch Blitz Women 2022"]
[Site "Magdeburg"]
[Date "2022.08.13"]
[Round "14.10"]
[White "Falke, Ornella"]
[Black "Schuster, Rebekka"]
[Result "0-1"]
[ECO "A04"]
[WhiteElo "1912"]
[BlackElo "1815"]
[Annotator "TA"]
[PlyCount "52"]
[EventDate "2022.08.10"]
[EventType "tourn"]
[EventCountry "GER"]
[SourceTitle "playchess.com"]
[Source "ChessBase"]
[SourceQuality "1"]
[TimeControl "180+2"]

{[%evp 11,52,23,23,-65,29,-16,-11,-52,-40,-111,-42,-45,-52,-151,-162,-155,-156,-155,-155,-158,-161,-165,-153,-147,-56,-249,-242,-216,-205,-220,-163,-156,168,179,176,170,405,405,405,405,470,470,463]} 1. Nf3 {[%emt 0:00:03]} e6 {[%emt 0:00:01]} 2. e4 {[%emt 0:00:03]} d5 {[%emt 0:00:01]} 3. e5 {[%emt 0:00:12]} Ne7 {[%emt 0:00:01]} 4. d4 {[%emt 0:00:02]} Nf5 {[%emt 0:00:07]} 5. Bd3 {[%emt 0:00:09]} c5 {[%emt 0:00:06]} 6. c3 {[%emt 0:00:01]} Nc6 {[%emt 0:00:02][%cal Rc5d4]} 7. Na3 {[%emt 0:00:19] C02: French: Advance Variation.} (7. dxc5 $11 Bxc5 8. O-O) 7... a6 {[%emt 0:00:04] [#]} (7... cxd4 $15 8. Bxf5 dxc3 9. bxc3 exf5) 8. Bg5 $146 {[%emt 0:00:14]} ({Predecessor:} 8. Nc2 Qc7 9. O-O b5 10. Bxf5 exf5 11. dxc5 Be6 12. b4 Nxe5 13. Re1 Nxf3+ 14. Qxf3 Be7 {1-0 (62) Malar,P-Kunak,S Slovakia 1995}) 8... Qb6 {[%emt 0:00:33]} 9. Bxf5 {[%emt 0:00:36] Threatens to win with Bd3. The position is equal.} exf5 {[%emt 0:00:02]} 10. dxc5 {[%emt 0:00:29]} ({White should try} 10. Rb1 $15) 10... Bxc5 {[%emt 0:00:03]} (10... Qxb2 $17 11. Qc1 Qxc1+ 12. Rxc1 Bxc5) 11. Qe2 $15 {[%emt 0:00:22]} O-O {[%emt 0:00:07]} 12. b4 {[%emt 0:00:08] [#]} (12. O-O $15) 12... Bxb4 $1 $17 {[%emt 0:00:13][%mdl 512]} 13. cxb4 {[%emt 0:00:11]} Qxb4+ {[%emt 0:00:01]} 14. Qd2 {[%emt 0:00:01]} Qxa3 {[%emt 0:00:01]} 15. O-O {[%emt 0:00:02]} Be6 {[%emt 0:00:08]} 16. Rab1 {[%emt 0:00:01]} b5 {[%emt 0:00:36]} 17. Rb3 {[%emt 0:00:04] [#]} Qa5 {[%emt 0:00:04]} (17... Qa4 $1 $17 {And now ...Rfc8 would win.} 18. Rc3 Rac8) 18. Qc2 $2 {[%emt 0:00:05]} ({White should play} 18. Rc3 $1 $15 Qb6 19. Bh6) 18... Rac8 $19 {[%emt 0:00:02]} 19. Qb2 {[%emt 0:00:14]} Qc7 {[%emt 0:00:25][%cal Od5d4]} 20. Rc1 {[%emt 0:00:03]} d4 {[%emt 0:00:13]} 21. Nxd4 {[%emt 0:00:13] [#]} Qxe5 $2 {[%emt 0:00:15]} 22. Nxc6 $18 {[%emt 0:00:11]} Qxb2 {[%emt 0:00:03]} 23. Rxb2 {Ne7+ is the strong threat.} f6 $2 (23... Kh8 {was necessary.} 24. Rbc2 h6) 24. Ne7+ Kf7 25. Nxc8 Bxc8 26. Rc7+ Kg6 {[%mdl 32768] Weighted Error Value: White=0.43/Black=0.73. Sensor Board Error (Ke4/e5)?} 0-1

[Event "German-ch Blitz Women 2022"]
[Site "Magdeburg"]
[Date "2022.08.13"]
[Round "14.11"]
[White "Kosovska, Olena"]
[Black "Fock, Sana"]
[Result "1-0"]
[ECO "B23"]
[WhiteElo "1831"]
[BlackElo "1807"]
[Annotator "NA RC COMBH"]
[PlyCount "56"]
[EventDate "2022.08.10"]
[EventType "tourn"]
[EventCountry "GER"]
[SourceTitle "playchess.com"]
[Source "ChessBase"]
[SourceQuality "1"]
[TimeControl "180+2"]

1. e4 {[%emt 0:00:00]} c5 {[%emt 0:00:00]} 2. Nc3 {[%emt 0:00:01]} d6 {[%emt 0:00:01]} 3. f4 {[%emt 0:00:01]} Nc6 {[%emt 0:00:03]} 4. Nf3 {[%emt 0:00:02]} g6 {[%emt 0:00:01]} 5. Bb5 {[%emt 0:00:01]} Bd7 {[%emt 0:00:02]} 6. O-O {[%emt 0:00:03]} Bg7 {[%emt 0:00:02]} 7. d3 {[%emt 0:00:06]} e6 {[%emt 0:00:05]} 8. Bxc6 {[%emt 0:00:15]} Bxc6 {[%emt 0:00:02]} 9. f5 {[%emt 0:00:02]} exf5 {[%emt 0:00:22]} 10. exf5 {[%emt 0:00:01]} Be5 {[%emt 0:00:55]} 11. Qe2 {[%emt 0:00:32]} f6 {[%emt 0:00:13]} 12. fxg6 {[%emt 0:00:11]} hxg6 {[%emt 0:00:02]} 13. Nxe5 {[%emt 0:00:08]} dxe5 {[%emt 0:00:04]} 14. Be3 {[%emt 0:00:09]} Qd6 {[%emt 0:00:38]} 15. Qg4 {[%emt 0:00:05]} f5 {[%emt 0:00:15]} 16. Qc4 {[%emt 0:00:19]} O-O-O {[%emt 0:00:08]} 17. Bxc5 {[%emt 0:00:11]} Qc7 {[%emt 0:00:06]} 18. Bf2 {[%emt 0:00:09]} Ne7 {[%emt 0:00:10]} 19. Rae1 {[%emt 0:00:12]} Rh7 {[%emt 0:00:12]} 20. Qe6+ {[%emt 0:00:06]} Bd7 {[%emt 0:00:08]} 21. Qxe5 {[%emt 0:00:02]} Rdh8 {[%emt 0:00:03]} 22. Bg3 {[%emt 0:00:11]} Qb6+ {[%emt 0:00:04]} 23. Rf2 {[%emt 0:00:07]} Nc6 {[%emt 0:00:04]} 24. Qd6 {[%emt 0:00:09]} Re8 {[%emt 0:00:03]} 25. Rxe8+ {[%emt 0:00:03]} Bxe8 {[%emt 0:00:01]} 26. Qe6+ {[%emt 0:00:05]} Rd7 {[%emt 0:00:06]} 27. Nd5 {[%emt 0:00:07]} Qd8 {[%emt 0:00:03]} 28. Nf6 {[%emt 0:00:05]} Bf7 1-0

[Event "German-ch Blitz Women 2022"]
[Site "Magdeburg"]
[Date "2022.08.13"]
[Round "14.12"]
[White "Leveikina, Jevgenija"]
[Black "Heil, Marina"]
[Result "1-0"]
[ECO "A80"]
[WhiteElo "2061"]
[BlackElo "1926"]
[Annotator "NA RC"]
[PlyCount "59"]
[EventDate "2022.08.10"]
[EventType "tourn"]
[EventCountry "GER"]
[SourceTitle "playchess.com"]
[Source "ChessBase"]
[SourceQuality "1"]
[TimeControl "180+2"]

1. d4 {[%emt 0:00:00]} f5 {[%emt 0:00:01]} 2. Bg5 {[%emt 0:00:02]} Nf6 {[%emt 0:00:01]} 3. Bxf6 {[%emt 0:00:03]} exf6 {[%emt 0:00:01]} 4. e3 {[%emt 0:00:03]} d5 {[%emt 0:00:04]} 5. c4 {[%emt 0:00:01]} Be6 {[%emt 0:00:10]} 6. cxd5 {[%emt 0:00:05]} Bxd5 {[%emt 0:00:01]} 7. Nc3 {[%emt 0:00:02]} Bf7 {[%emt 0:00:04]} 8. Bd3 {[%emt 0:00:07]} g6 {[%emt 0:00:04]} 9. Nge2 {[%emt 0:00:08]} Nc6 {[%emt 0:00:02]} 10. O-O {[%emt 0:00:16]} a6 {[%emt 0:00:01]} 11. Rc1 {[%emt 0:00:10]} Bd6 {[%emt 0:00:10]} 12. e4 {[%emt 0:00:06]} fxe4 {[%emt 0:00:20]} 13. Bxe4 {[%emt 0:00:06]} Qd7 {[%emt 0:00:12]} 14. Re1 {[%emt 0:00:08]} O-O {[%emt 0:00:05]} 15. Ng3 {[%emt 0:00:12]} Rab8 {[%emt 0:00:15]} 16. a3 {[%emt 0:00:04]} Bxg3 {[%emt 0:00:19]} 17. hxg3 {[%emt 0:00:02]} Qxd4 {[%emt 0:00:02]} 18. Bxc6 {[%emt 0:00:07]} Qxd1 {[%emt 0:00:02]} 19. Rexd1 {[%emt 0:00:14]} bxc6 {[%emt 0:00:01]} 20. b4 {[%emt 0:00:02]} Bc4 {[%emt 0:00:18]} 21. Ne4 {[%emt 0:00:10]} Bb5 {[%emt 0:00:14]} 22. Nc5 {[%emt 0:00:10]} Rfe8 {[%emt 0:00:15]} 23. Rd7 {[%emt 0:00:07]} Rbc8 {[%emt 0:00:12]} 24. Rcd1 {[%emt 0:00:01]} Re5 {[%emt 0:00:17]} 25. R1d4 {[%emt 0:00:06]} a5 {[%emt 0:00:07]} 26. Ne4 {[%emt 0:00:12]} f5 {[%emt 0:00:07]} 27. Nf6+ {[%emt 0:00:03]} Kf8 {[%emt 0:00:06]} 28. Nxh7+ {[%emt 0:00:05]} Ke8 {[%emt 0:00:01]} 29. Nf6+ {[%emt 0:00:01]} Kf8 {[%emt 0:00:01]} 30. Rh7 {[%emt 0:00:10]} 1-0

[Event "German-ch Blitz Women 2022"]
[Site "Magdeburg"]
[Date "2022.08.13"]
[Round "15.1"]
[White "Heil, Marina"]
[Black "Paehtz, Elisabeth"]
[Result "0-1"]
[ECO "A10"]
[WhiteElo "1926"]
[BlackElo "2484"]
[Annotator "TA"]
[PlyCount "68"]
[EventDate "2022.08.10"]
[EventType "tourn"]
[EventCountry "GER"]
[SourceTitle "playchess.com"]
[Source "ChessBase"]
[SourceQuality "1"]
[TimeControl "180+2"]

{[%evp 9,68,4,49,43,34,37,82,80,59,84,110,110,185,168,139,3,2,0,3,-2,53,53,35,8,28,25,53,29,49,47,53,-11,16,-17,0,0,8,-35,-39,-106,-116,-175,-175,-188,-189,-187,-172,-185,-200,-249,-247,-629,-624,-631,-615,-618,-619,-688,-659,-743,-700]} 1. c4 {[%emt 0:00:01]} b6 {[%emt 0:00:01]} 2. Nc3 {[%emt 0:00:02]} Bb7 {[%emt 0:00:01]} 3. e4 {[%emt 0:00:02]} e6 {[%emt 0:00:00]} 4. d3 {[%emt 0:00:01]} Bb4 {[%emt 0:00:02]} 5. Nge2 {[%emt 0:00:02]} Nf6 {[%emt 0:00:11]} 6. a3 {[%emt 0:00:04] A10: English Opening: Unusual Replies for Black.} Be7 {[%emt 0:00:02]} 7. g3 {[%emt 0:00:04] [#]} d5 $146 {[%emt 0:00:07]} ({Predecessor:} 7... O-O 8. Bg2 d6 9. O-O Nc6 10. b4 e5 11. f4 Nd4 12. h3 Nd7 13. Nd5 c6 14. Nxe7+ Qxe7 {1-0 (32) Leon,C (1753)-Potvin,D (1565) Gatineau 2014}) 8. cxd5 {[%emt 0:00:12] White is better.} exd5 {[%emt 0:00:01]} 9. e5 {[%emt 0:00:01]} Nfd7 {[%emt 0:00:13]} 10. d4 {[%emt 0:00:05][%cal Bd3d4,Bd4e5][%mdl 32]} Nxe5 {[%emt 0:00:24]} 11. dxe5 $18 {[%emt 0:00:32] Threatens to win with Bg2.} d4 {[%emt 0:00:00] [#]} 12. Rg1 {[%emt 0:00:07]} dxc3 $11 {[%emt 0:00:01]} 13. Qxd8+ {[%emt 0:00:06]} ({Much weaker is} 13. Nxc3 Qxd1+ 14. Kxd1 Nc6 $17) 13... Bxd8 {[%emt 0:00:02]} 14. Nxc3 {[%emt 0:00:01]} Nd7 {[%emt 0:00:06]} (14... Nc6 $11) 15. f4 $1 $14 {[%emt 0:00:03]} Be7 {[%emt 0:00:13]} 16. Bg2 {[%emt 0:00:04]} Bxg2 {[%emt 0:00:06]} (16... O-O-O {with more complications.} 17. Be3 f6 18. Bh3 fxe5 19. O-O-O Bf3) 17. Rxg2 {[%emt 0:00:01]} Nc5 {[%emt 0:00:06][%cal Bd7c5,Bc5d3,Bd3b2][%mdl 32]} 18. Be3 {[%emt 0:00:08]} (18. Nd5 $5 {[%cal Rd5c7]} Nb3 19. Rb1 $14 (19. Nxc7+ Kd7 $11)) 18... Nd3+ {[%emt 0:00:02]} 19. Kf1 {[%emt 0:00:01] Strongly threatening Nd5.} O-O-O $1 {[%emt 0:00:04]} 20. a4 {[%emt 0:00:07]} (20. Rd2 $14) 20... Bb4 {[%emt 0:00:04][%cal Od3b2]} 21. Nb5 {[%emt 0:00:10]} Kb7 {[%emt 0:00:20]} 22. Rc2 {[%emt 0:00:07]} c6 {[%emt 0:00:12]} 23. Nc3 {[%emt 0:00:07]} Nxb2 {[%emt 0:00:05]} 24. Na2 {[%emt 0:00:25]} (24. Ne4 $15 Nd3 25. a5) 24... Nd3 $36 {[%emt 0:00:05][%mdl 2048] Black is really pushing. Black is more active.} 25. Nxb4 {[%emt 0:00:10]} (25. Rb1 $17 c5 26. Ke2) 25... Nxb4 $19 {[%emt 0:00:02]} 26. Rb2 {[%emt 0:00:01]} a5 {[%emt 0:00:11]} 27. Ke2 {[%emt 0:00:20]} Rd5 {[%emt 0:00:01]} 28. Bd2 {[%emt 0:00:10]} c5 {[%emt 0:00:03]} 29. Be3 {[%emt 0:00:08]} Rhd8 {[%emt 0:00:01]} 30. Rc1 $2 {[%emt 0:00:08]} (30. Rb3) 30... Nd3 {[%emt 0:00:03] Black is clearly winning.} 31. Rcb1 {[%emt 0:00:12]} Nxb2 {[%emt 0:00:01]} 32. Rxb2 {[%emt 0:00:00]} Kc6 {[%emt 0:00:01]} 33. h3 {[%emt 0:00:09]} Rd3 {[%emt 0:00:01]} 34. g4 {[%emt 0:00:05]} Ra3 {[%emt 0:00:02] Never resign too early!  Weighted Error Value: White=0.46/Black=0.17 (very precise)} 0-1